[Event "1st Sakatam Open 2024"]
[Site "Guwahati"]
[Date "2024.03.25"]
[Round "5.5"]
[White "Kumar, Gaurav"]
[Black "Kishan Kumar"]
[Result "1/2-1/2"]
[ECO "A29"]
[WhiteElo "2049"]
[BlackElo "1867"]
[Annotator "RC"]
[PlyCount "71"]
[EventDate "2024.03.24"]
[EventType "swiss"]
[EventCountry "IND"]
[SourceTitle "playchess.com"]
[Source "ChessBase"]
[SourceQuality "1"]
[TimeControl "5400+30"]

1. c4 {[%emt 0:09:13]} e5 {[%emt 0:00:09]} 2. Nc3 {[%emt 0:01:08]} Nf6 {[%emt 0:00:19]} 3. g3 {[%emt 0:00:40]} d5 {[%emt 0:00:15]} 4. cxd5 {[%emt 0:00:35]} Nxd5 {[%emt 0:00:04]} 5. Bg2 {[%emt 0:00:11]} Nb6 {[%emt 0:00:06]} 6. Nf3 {[%emt 0:01:02]} Nc6 {[%emt 0:00:03]} 7. O-O {[%emt 0:04:12]} Be7 {[%emt 0:00:03]} 8. e3 {[%emt 0:10:59]} O-O {[%emt 0:02:28]} 9. d4 {[%emt 0:00:40]} exd4 {[%emt 0:00:53]} 10. Nxd4 {[%emt 0:01:15]} Nxd4 {[%emt 0:00:32]} 11. Qxd4 {[%emt 0:01:55]} Qxd4 {[%emt 0:03:35]} 12. exd4 {[%emt 0:00:21]} c6 {[%emt 0:00:45]} 13. d5 {[%emt 0:01:15]} Nxd5 {[%emt 0:02:37]} 14. Nxd5 {[%emt 0:02:10]} cxd5 {[%emt 0:00:03]} 15. Bxd5 {[%emt 0:00:13]} Rd8 {[%emt 0:00:35]} 16. Bg2 {[%emt 0:01:22]} Bf6 {[%emt 0:03:23]} 17. Bf4 {[%emt 0:34:10]} g5 {[%emt 0:07:40]} 18. Be3 {[%emt 0:00:38]} Be6 {[%emt 0:00:49]} 19. Rad1 {[%emt 0:06:08]} Bxa2 {[%emt 0:07:48]} 20. Bxb7 {[%emt 0:00:23]} Rab8 {[%emt 0:00:21]} 21. Rxd8+ {[%emt 0:00:21]} Bxd8 {[%emt 0:05:36]} 22. Rd1 {[%emt 0:04:06]} Bf6 {[%emt 0:04:36]} 23. Rd7 {[%emt 0:00:18]} Be6 {[%emt 0:00:47]} 24. Bxa7 {[%emt 0:00:52]} Bxd7 {[%emt 0:00:57]} 25. Bxb8 {[%emt 0:00:08]} Bxb2 {[%emt 0:00:06]} 26. f3 {[%emt 0:02:13]} Bd4+ {[%emt 0:02:54]} 27. Kg2 {[%emt 0:00:07]} Kg7 {[%emt 0:00:19]} 28. h3 {[%emt 0:00:35]} h5 {[%emt 0:01:43]} 29. f4 {[%emt 0:00:30]} gxf4 {[%emt 0:00:45]} 30. Bxf4 {[%emt 0:00:11]} Bf5 {[%emt 0:00:40]} 31. Bf3 {[%emt 0:00:26]} Kg6 {[%emt 0:00:39]} 32. g4 {[%emt 0:00:20]} hxg4 {[%emt 0:00:18]} 33. Bxg4 {[%emt 0:00:28]} Bxg4 {[%emt 0:00:19]} 34. hxg4 {[%emt 0:00:05]} f5 {[%emt 0:00:13]} 35. Kf3 {[%emt 0:00:05]} fxg4+ {[%emt 0:00:04]} 36. Kxg4 {[%emt 0:00:35]} 1/2-1/2

[Event "1st Sakatam Open 2024"]
[Site "Guwahati"]
[Date "2024.03.25"]
[Round "5.6"]
[White "Singh, Y. Dhanabir"]
[Black "Madkar, Atharva"]
[Result "1-0"]
[ECO "C44"]
[WhiteElo "1996"]
[BlackElo "1788"]
[Annotator "RC"]
[PlyCount "47"]
[EventDate "2024.03.24"]
[EventType "swiss"]
[EventCountry "IND"]
[SourceTitle "playchess.com"]
[Source "ChessBase"]
[SourceQuality "1"]
[TimeControl "5400+30"]

1. e4 {[%emt 0:00:15]} e5 2. Nf3 {[%emt 0:00:04]} Nc6 {[%emt 0:00:33]} 3. d4 {[%emt 0:00:07]} exd4 {[%emt 0:00:11]} 4. c3 {[%emt 0:01:45]} d5 {[%emt 0:01:24]} 5. exd5 {[%emt 0:00:23]} Qxd5 {[%emt 0:00:09]} 6. cxd4 {[%emt 0:00:08]} Bg4 {[%emt 0:03:07]} 7. Be2 {[%emt 0:00:05]} O-O-O {[%emt 0:00:30]} 8. Nc3 {[%emt 0:00:29]} Bb4 {[%emt 0:00:43]} 9. O-O {[%emt 0:00:44]} Qd7 {[%emt 0:00:22]} 10. Qa4 {[%emt 0:03:49]} Nge7 {[%emt 0:16:17]} 11. d5 {[%emt 0:34:21]} Nxd5 {[%emt 0:01:35]} 12. Nxd5 {[%emt 0:00:30]} Qxd5 {[%emt 0:00:07]} 13. a3 {[%emt 0:00:24]} Qe6 {[%emt 0:00:18]} 14. Be3 {[%emt 0:00:34]} Bxf3 {[%emt 0:30:22]} 15. Bxf3 {[%emt 0:00:10]} Bd2 {[%emt 0:00:06]} 16. Bxa7 {[%emt 0:06:00]} h5 {[%emt 0:06:52]} 17. Bc5 {[%emt 0:04:21]} Nb8 {[%emt 0:03:29]} 18. Rad1 {[%emt 0:05:22]} Na6 {[%emt 0:09:55]} 19. Bd4 {[%emt 0:01:17]} Bh6 {[%emt 0:07:39]} 20. Rfe1 {[%emt 0:06:57]} Qg6 {[%emt 0:00:55]} 21. Re7 {[%emt 0:03:40]} Bg5 {[%emt 0:03:20]} 22. Qb5 {[%emt 0:01:46]} Rxd4 {[%emt 0:07:37]} 23. Bxb7+ {[%emt 0:01:30]} Kd8 {[%emt 0:00:17]} 24. Qd7+ {[%emt 0:00:25]} 1-0

[Event "1st Sakatam Open 2024"]
[Site "Guwahati"]
[Date "2024.03.25"]
[Round "5.7"]
[White "Ratul Majumder"]
[Black "Arpan Das"]
[Result "0-1"]
[ECO "B33"]
[WhiteElo "1577"]
[BlackElo "2374"]
[Annotator "RC"]
[PlyCount "72"]
[EventDate "2024.03.24"]
[EventType "swiss"]
[EventCountry "IND"]
[SourceTitle "playchess.com"]
[Source "ChessBase"]
[SourceQuality "1"]
[TimeControl "5400+30"]

1. e4 c5 {[%emt 0:10:39]} 2. Nf3 {[%emt 0:00:44]} Nc6 {[%emt 0:00:12]} 3. d4 {[%emt 0:00:53]} cxd4 {[%emt 0:00:04]} 4. Nxd4 {[%emt 0:00:36]} Nf6 {[%emt 0:00:14]} 5. Nc3 {[%emt 0:00:41]} e5 {[%emt 0:00:09]} 6. Ndb5 {[%emt 0:00:36]} d6 {[%emt 0:00:06]} 7. Bg5 {[%emt 0:00:25]} a6 {[%emt 0:00:05]} 8. Na3 {[%emt 0:00:39]} b5 {[%emt 0:00:08]} 9. Nd5 {[%emt 0:00:44]} Be7 {[%emt 0:00:19]} 10. Bxf6 {[%emt 0:00:20]} Bxf6 {[%emt 0:00:06]} 11. c3 {[%emt 0:00:57]} Bg5 {[%emt 0:00:36]} 12. Be2 {[%emt 0:02:27]} O-O {[%emt 0:00:14]} 13. Bg4 {[%emt 0:02:08]} Be6 {[%emt 0:02:21]} 14. O-O {[%emt 0:02:06]} g6 {[%emt 0:00:08]} 15. Nc2 {[%emt 0:10:40]} f5 {[%emt 0:02:53]} 16. Bh3 {[%emt 0:01:46]} Ne7 {[%emt 0:00:16]} 17. Nxe7+ {[%emt 0:04:57]} Qxe7 {[%emt 0:01:13]} 18. exf5 {[%emt 0:00:41]} gxf5 {[%emt 0:00:06]} 19. Re1 {[%emt 0:01:53]} Rad8 {[%emt 0:00:06]} 20. Nb4 {[%emt 0:03:22]} Qb7 {[%emt 0:08:30]} 21. Qh5 {[%emt 0:01:14]} Qg7 {[%emt 0:06:27]} 22. Nxa6 {[%emt 0:03:57]} Rf6 {[%emt 0:00:16]} 23. Nc7 {[%emt 0:21:22]} Bd7 {[%emt 0:03:07]} 24. Qd1 {[%emt 0:06:13]} Rh6 {[%emt 0:02:31]} 25. Nd5 {[%emt 0:03:37]} Rxh3 {[%emt 0:03:01]} 26. gxh3 {[%emt 0:07:31]} Bd2+ {[%emt 0:01:13]} 27. Kh1 {[%emt 0:00:27]} Bxe1 {[%emt 0:00:11]} 28. Qxe1 {[%emt 0:00:01]} Bc6 {[%emt 0:00:08]} 29. Qd2 {[%emt 0:00:02]} Kh8 {[%emt 0:00:24]} 30. Rg1 {[%emt 0:09:33]} Qf7 {[%emt 0:00:57]} 31. Rd1 {[%emt 0:00:02]} Rg8 {[%emt 0:00:05]} 32. f3 {[%emt 0:00:15]} Qa7 {[%emt 0:01:23]} 33. b3 {[%emt 0:01:28]} Qc5 {[%emt 0:00:17]} 34. c4 {[%emt 0:07:24]} bxc4 {[%emt 0:00:05]} 35. b4 {[%emt 0:00:01]} Bxd5 {[%emt 0:00:33]} 36. Qxd5 {[%emt 0:00:30]} Rg1+ {[%emt 0:00:06]} 0-1

[Event "1st Sakatam Open 2024"]
[Site "Guwahati"]
[Date "2024.03.25"]
[Round "5.8"]
[White "Mishra, Neeraj-Kumar"]
[Black "Arshiya Das"]
[Result "1/2-1/2"]
[ECO "D79"]
[WhiteElo "2150"]
[BlackElo "1741"]
[Annotator "RC"]
[PlyCount "120"]
[EventDate "2024.03.24"]
[EventType "swiss"]
[EventCountry "IND"]
[SourceTitle "playchess.com"]
[Source "ChessBase"]
[SourceQuality "1"]
[TimeControl "5400+30"]

1. d4 {[%emt 0:00:34]} Nf6 {[%emt 0:00:06]} 2. Nf3 {[%emt 0:00:36]} d5 {[%emt 0:01:00]} 3. g3 {[%emt 0:00:42]} g6 {[%emt 0:00:46]} 4. Bg2 {[%emt 0:00:10]} Bg7 {[%emt 0:00:03]} 5. O-O {[%emt 0:00:10]} O-O {[%emt 0:00:08]} 6. c4 {[%emt 0:00:13]} c6 {[%emt 0:00:04]} 7. cxd5 {[%emt 0:00:24]} cxd5 {[%emt 0:00:23]} 8. Nc3 {[%emt 0:00:40]} Nc6 {[%emt 0:00:25]} 9. Ne5 {[%emt 0:00:16]} Be6 {[%emt 0:06:10]} 10. Be3 {[%emt 0:05:01]} Nd7 {[%emt 0:03:43]} 11. f4 {[%emt 0:04:33]} Nb6 {[%emt 0:02:46]} 12. b3 {[%emt 0:04:39]} Qc8 {[%emt 0:06:33]} 13. Rc1 {[%emt 0:01:21]} Bh3 {[%emt 0:05:10]} 14. Nxd5 {[%emt 0:02:08]} Nxd5 {[%emt 0:00:36]} 15. Bxd5 {[%emt 0:00:09]} Bxf1 {[%emt 0:03:55]} 16. Qxf1 {[%emt 0:07:04]} Qd8 {[%emt 0:03:46]} 17. Bxc6 {[%emt 0:02:44]} bxc6 {[%emt 0:01:12]} 18. Nxc6 {[%emt 0:00:10]} Qd7 {[%emt 0:02:12]} 19. Rc4 {[%emt 0:00:47]} Rfe8 {[%emt 0:03:55]} 20. Qc1 {[%emt 0:00:48]} Qg4 {[%emt 0:01:29]} 21. Qc2 {[%emt 0:00:52]} Kf8 {[%emt 0:02:11]} 22. Bf2 {[%emt 0:01:25]} Qd7 {[%emt 0:05:03]} 23. e4 {[%emt 0:00:34]} Rec8 {[%emt 0:02:07]} 24. d5 {[%emt 0:02:00]} Re8 {[%emt 0:04:21]} 25. b4 {[%emt 0:03:09]} a6 {[%emt 0:02:25]} 26. a4 {[%emt 0:00:54]} Kg8 {[%emt 0:00:07]} 27. Rc5 {[%emt 0:00:23]} e6 {[%emt 0:01:29]} 28. Qd3 {[%emt 0:07:37]} exd5 {[%emt 0:07:15]} 29. exd5 {[%emt 0:00:09]} Bf8 {[%emt 0:03:52]} 30. Rc4 {[%emt 0:01:00]} Bd6 {[%emt 0:01:46]} 31. Kg2 {[%emt 0:00:09]} Rac8 {[%emt 0:06:03]} 32. b5 {[%emt 0:01:18]} axb5 {[%emt 0:00:33]} 33. axb5 {[%emt 0:00:08]} Ra8 {[%emt 0:00:08]} 34. Re4 {[%emt 0:02:06]} Ra3 {[%emt 0:02:10]} 35. Qe2 {[%emt 0:00:17]} Rea8 {[%emt 0:00:28]} 36. b6 {[%emt 0:03:10]} Bf8 {[%emt 0:03:54]} 37. Qb5 {[%emt 0:01:58]} R8a5 {[%emt 0:02:51]} 38. Qb1 {[%emt 0:01:29]} Ra1 {[%emt 0:00:46]} 39. Qb3 {[%emt 0:01:36]} R1a3 {[%emt 0:00:05]} 40. Qd1 {[%emt 0:01:22]} Rxd5 {[%emt 0:01:38]} 41. Qc1 {[%emt 0:04:28]} Ra2 {[%emt 0:02:57]} 42. Ne5 {[%emt 0:00:33]} Qb7 {[%emt 0:01:14]} 43. Qc7 {[%emt 0:01:19]} Qxc7 {[%emt 0:02:16]} 44. bxc7 {[%emt 0:00:06]} Ra8 {[%emt 0:00:20]} 45. Ng4 {[%emt 0:03:08]} Rd6 {[%emt 0:02:08]} 46. Rc4 {[%emt 0:01:29]} Rc8 {[%emt 0:00:11]} 47. Bd4 {[%emt 0:00:46]} Bg7 {[%emt 0:02:28]} 48. Ne5 {[%emt 0:02:51]} Re6 {[%emt 0:01:38]} 49. Bc3 {[%emt 0:01:34]} Re7 {[%emt 0:00:39]} 50. Ba5 {[%emt 0:02:19]} Bxe5 {[%emt 0:00:25]} 51. fxe5 {[%emt 0:00:09]} Rxe5 {[%emt 0:00:11]} 52. Rd4 {[%emt 0:00:38]} Kf8 {[%emt 0:01:12]} 53. Rd8+ {[%emt 0:00:20]} Re8 {[%emt 0:00:02]} 54. Rd7 {[%emt 0:00:59]} Kg7 {[%emt 0:03:06]} 55. Bc3+ {[%emt 0:00:50]} Kf8 {[%emt 0:00:06]} 56. Bf6 {[%emt 0:00:07]} Re6 {[%emt 0:00:37]} 57. Bd8 {[%emt 0:01:17]} Ke8 {[%emt 0:00:30]} 58. Rd2 {[%emt 0:01:20]} Rc6 {[%emt 0:00:11]} 59. Re2+ {[%emt 0:00:09]} Re6 {[%emt 0:00:07]} 60. Rd2 {[%emt 0:00:52]} Rc6 {[%emt 0:00:07]} 1/2-1/2

[Event "1st Sakatam Open 2024"]
[Site "Guwahati"]
[Date "2024.03.26"]
[Round "6.1"]
[White "Kaustuv, Kundu"]
[Black "Balkishan, A.."]
[Result "1-0"]
[ECO "A15"]
[WhiteElo "2388"]
[BlackElo "2108"]
[Annotator "RC"]
[PlyCount "63"]
[EventDate "2024.03.24"]
[EventType "swiss"]
[EventCountry "IND"]
[SourceTitle "playchess.com"]
[Source "ChessBase"]
[SourceQuality "1"]
[TimeControl "5400+30"]

1. Nf3 {[%emt 0:09:25]} Nf6 {[%emt 0:01:03]} 2. c4 {[%emt 0:00:20]} g6 {[%emt 0:00:28]} 3. b3 {[%emt 0:01:37]} Bg7 {[%emt 0:00:23]} 4. Bb2 {[%emt 0:00:06]} O-O {[%emt 0:00:13]} 5. g3 {[%emt 0:00:15]} d6 {[%emt 0:00:52]} 6. d4 {[%emt 0:00:30]} b6 {[%emt 0:01:06]} 7. Bg2 {[%emt 0:00:12]} Bb7 {[%emt 0:00:02]} 8. O-O {[%emt 0:00:08]} Nbd7 {[%emt 0:00:18]} 9. Nc3 {[%emt 0:05:03]} e5 {[%emt 0:02:57]} 10. d5 {[%emt 0:05:19]} e4 {[%emt 0:06:37]} 11. Nd4 {[%emt 0:01:31]} Re8 {[%emt 0:00:43]} 12. Qc2 {[%emt 0:04:17]} e3 {[%emt 0:12:28]} 13. f4 {[%emt 0:01:40]} Qe7 {[%emt 0:09:48]} 14. Bf3 {[%emt 0:09:12]} Nc5 {[%emt 0:01:23]} 15. Nc6 {[%emt 0:06:08]} Bxc6 {[%emt 0:02:27]} 16. dxc6 {[%emt 0:00:10]} a5 {[%emt 0:06:58]} 17. Rad1 {[%emt 0:05:05]} Qe6 {[%emt 0:01:00]} 18. Nb5 {[%emt 0:03:13]} Re7 {[%emt 0:03:24]} 19. f5 {[%emt 0:02:02]} Qc8 {[%emt 0:03:02]} 20. fxg6 {[%emt 0:01:41]} fxg6 {[%emt 0:04:34]} 21. Bxf6 {[%emt 0:01:57]} Bxf6 {[%emt 0:00:04]} 22. Bd5+ {[%emt 0:00:04]} Kg7 {[%emt 0:00:08]} 23. Rxf6 {[%emt 0:05:31]} Kxf6 {[%emt 0:00:17]} 24. Qc3+ {[%emt 0:00:12]} Re5 {[%emt 0:05:42]} 25. Rf1+ {[%emt 0:00:17]} Kg7 {[%emt 0:01:29]} 26. Rf7+ {[%emt 0:00:54]} Kh8 {[%emt 0:06:22]} 27. Rxc7 {[%emt 0:03:00]} Qh3 {[%emt 0:09:28]} 28. Nxd6 {[%emt 0:00:44]} Nd3 {[%emt 0:00:03]} 29. Nf7+ {[%emt 0:00:09]} Kg7 {[%emt 0:00:04]} 30. Nxe5+ {[%emt 0:00:35]} Kh6 {[%emt 0:00:13]} 31. Nxd3 {[%emt 0:00:18]} Rf8 {[%emt 0:00:13]} 32. Qg7+ {[%emt 0:00:05]} 1-0

[Event "1st Sakatam Open 2024"]
[Site "Guwahati"]
[Date "2024.03.26"]
[Round "6.2"]
[White "Subhayan Kundu"]
[Black "Singh, Y. Dhanabir"]
[Result "1-0"]
[ECO "B36"]
[WhiteElo "2353"]
[BlackElo "1996"]
[Annotator "RC"]
[PlyCount "50"]
[EventDate "2024.03.24"]
[EventType "swiss"]
[EventCountry "IND"]
[SourceTitle "playchess.com"]
[Source "ChessBase"]
[SourceQuality "1"]
[TimeControl "5400+30"]

1. e4 {[%emt 0:03:41]} c5 {[%emt 0:00:16]} 2. Nf3 {[%emt 0:00:23]} d6 {[%emt 0:00:11]} 3. d4 {[%emt 0:00:04]} cxd4 {[%emt 0:00:09]} 4. Nxd4 {[%emt 0:00:03]} Nf6 {[%emt 0:00:11]} 5. f3 {[%emt 0:00:05]} Nc6 {[%emt 0:01:21]} 6. c4 {[%emt 0:00:30]} Nxd4 {[%emt 0:03:19]} 7. Qxd4 {[%emt 0:00:08]} g6 {[%emt 0:00:12]} 8. Nc3 {[%emt 0:02:43]} Bg7 {[%emt 0:00:08]} 9. Be3 {[%emt 0:00:10]} O-O {[%emt 0:00:14]} 10. Qd2 {[%emt 0:00:04]} Be6 {[%emt 0:07:29]} 11. Rc1 {[%emt 0:02:39]} Qa5 {[%emt 0:01:54]} 12. Bd3 {[%emt 0:00:50]} Nd7 {[%emt 0:11:48]} 13. b3 {[%emt 0:02:26]} Rfc8 {[%emt 0:01:52]} 14. O-O {[%emt 0:00:53]} Bxc3 {[%emt 0:31:42]} 15. Rxc3 {[%emt 0:01:05]} b5 {[%emt 0:00:11]} 16. f4 {[%emt 0:13:32]} f6 {[%emt 0:03:54]} 17. e5 {[%emt 0:31:18]} b4 {[%emt 0:13:35]} 18. Rcc1 {[%emt 0:04:45]} fxe5 {[%emt 0:07:57]} 19. f5 {[%emt 0:01:32]} gxf5 {[%emt 0:00:42]} 20. Bh6 {[%emt 0:10:13]} f4 {[%emt 0:02:57]} 21. Qc2 {[%emt 0:00:04]} Qc5+ {[%emt 0:09:30]} 22. Kh1 {[%emt 0:00:02]} Kf7 {[%emt 0:00:20]} 23. Bxh7 {[%emt 0:00:26]} Ke8 {[%emt 0:00:09]} 24. Qg6+ {[%emt 0:01:36]} Bf7 {[%emt 0:00:03]} 25. Qg7 {[%emt 0:00:05]} Be6 {[%emt 0:02:14]} 1-0

[Event "1st Sakatam Open 2024"]
[Site "Guwahati"]
[Date "2024.03.26"]
[Round "6.3"]
[White "Arpan Das"]
[Black "Arpan Das"]
[Result "1/2-1/2"]
[ECO "D10"]
[WhiteElo "2374"]
[BlackElo "2374"]
[Annotator "RC"]
[PlyCount "42"]
[EventDate "2024.03.24"]
[EventType "swiss"]
[EventCountry "IND"]
[SourceTitle "playchess.com"]
[Source "ChessBase"]
[SourceQuality "1"]
[TimeControl "5400+30"]

1. d4 {[%emt 0:09:34]} d5 {[%emt 0:00:05]} 2. c4 {[%emt 0:00:29]} dxc4 {[%emt 0:00:05]} 3. e4 {[%emt 0:00:15]} b5 {[%emt 0:00:08]} 4. a4 {[%emt 0:00:29]} c6 {[%emt 0:00:05]} 5. Nc3 {[%emt 0:00:07]} b4 {[%emt 0:00:05]} 6. Nce2 {[%emt 0:00:06]} e6 {[%emt 0:00:18]} 7. Nf3 {[%emt 0:00:25]} Ba6 {[%emt 0:00:09]} 8. Ng3 {[%emt 0:01:15]} c5 {[%emt 0:00:12]} 9. Be3 {[%emt 0:00:27]} Nf6 {[%emt 0:36:59]} 10. Ne5 {[%emt 0:11:55]} cxd4 {[%emt 0:11:32]} 11. Bxd4 {[%emt 0:00:24]} Be7 {[%emt 0:03:27]} 12. Be2 {[%emt 0:01:24]} O-O {[%emt 0:01:14]} 13. O-O {[%emt 0:00:04]} Bb7 {[%emt 0:06:47]} 14. Nxc4 {[%emt 0:15:19]} Nc6 {[%emt 0:09:10]} 15. Be3 {[%emt 0:00:31]} Rc8 {[%emt 0:01:56]} 16. a5 {[%emt 0:01:19]} Rc7 {[%emt 0:12:08]} 17. a6 {[%emt 0:06:47]} Bc8 {[%emt 0:00:13]} 18. Bf4 {[%emt 0:00:32]} Rd7 {[%emt 0:02:46]} 19. Qa4 {[%emt 0:08:37]} Nd4 {[%emt 0:00:23]} 20. Bd1 {[%emt 0:06:10]} Bc5 {[%emt 0:03:18]} 21. Rc1 {[%emt 0:00:05]} Qe7 {[%emt 0:01:51]} 1/2-1/2

[Event "1st Sakatam Open 2024"]
[Site "Guwahati"]
[Date "2024.03.26"]
[Round "6.4"]
[White "Mayukh Majumder"]
[Black "Kumar, Gaurav"]
[Result "0-1"]
[ECO "B33"]
[WhiteElo "1833"]
[BlackElo "2049"]
[Annotator "RC"]
[PlyCount "60"]
[EventDate "2024.03.24"]
[EventType "swiss"]
[EventCountry "IND"]
[SourceTitle "playchess.com"]
[Source "ChessBase"]
[SourceQuality "1"]
[TimeControl "5400+30"]

1. e4 {[%emt 1:31:00]} c5 {[%emt 0:02:14]} 2. Nf3 {[%emt 0:00:00]} Nc6 {[%emt 0:00:07]} 3. d4 {[%emt 0:00:00]} cxd4 {[%emt 0:00:05]} 4. Nxd4 {[%emt 0:00:00]} Nf6 {[%emt 0:00:05]} 5. Nc3 {[%emt 0:00:00]} e5 {[%emt 0:00:14]} 6. Ndb5 {[%emt 0:00:00]} d6 {[%emt 0:00:10]} 7. Bg5 {[%emt 0:00:00]} a6 {[%emt 0:00:08]} 8. Na3 {[%emt 0:00:00]} b5 {[%emt 0:00:08]} 9. Bxf6 {[%emt 0:00:00]} gxf6 {[%emt 0:00:05]} 10. Nd5 {[%emt 0:00:00]} f5 {[%emt 0:01:36]} 11. g3 {[%emt 0:00:00]} fxe4 {[%emt 0:18:41]} 12. Bg2 {[%emt 0:00:00]} Bg7 {[%emt 0:02:07]} 13. Bxe4 {[%emt 0:00:00]} O-O {[%emt 0:00:23]} 14. Qd3 {[%emt 0:00:00]} f5 {[%emt 0:01:08]} 15. Nf6+ {[%emt 0:00:00]} Qxf6 {[%emt 0:00:46]} 16. Bxc6 {[%emt 0:00:00]} e4 {[%emt 0:02:51]} 17. Qb3+ {[%emt 0:00:00]} Be6 {[%emt 0:00:18]} 18. Bd5 {[%emt 0:00:00]} Bxd5 {[%emt 0:00:18]} 19. Qxd5+ {[%emt 0:00:00]} Kh8 {[%emt 0:00:10]} 20. Rb1 {[%emt 0:00:00]} f4 {[%emt 0:00:54]} 21. O-O {[%emt 0:00:00]} Rae8 {[%emt 0:00:32]} 22. c3 {[%emt 0:00:00]} Re5 {[%emt 0:01:15]} 23. Qd2 {[%emt 0:00:00]} f3 {[%emt 0:01:44]} 24. Nc2 {[%emt 0:00:00]} Qe6 {[%emt 0:01:12]} 25. h4 {[%emt 0:00:00]} Rh5 {[%emt 0:03:13]} 26. Ne3 {[%emt 0:00:00]} Be5 {[%emt 0:02:28]} 27. Qd5 {[%emt 0:00:00]} Qg6 {[%emt 0:00:29]} 28. Qxe5+ {[%emt 0:00:00]} dxe5 {[%emt 0:00:43]} 29. Kh2 {[%emt 0:00:00]} Rf4 {[%emt 0:03:11]} 30. gxf4 {[%emt 0:00:00]} Rxh4# {[%emt 0:00:07]} 0-1

[Event "1st Sakatam Open 2024"]
[Site "Guwahati"]
[Date "2024.03.26"]
[Round "6.5"]
[White "Mrinmoy Rajkhowa"]
[Black "Anushka Gupta"]
[Result "1-0"]
[ECO "B90"]
[WhiteElo "1901"]
[BlackElo "1832"]
[Annotator "RC"]
[PlyCount "117"]
[EventDate "2024.03.24"]
[EventType "swiss"]
[EventCountry "IND"]
[SourceTitle "playchess.com"]
[Source "ChessBase"]
[SourceQuality "1"]
[TimeControl "5400+30"]

1. e4 {[%emt 0:00:03]} c5 {[%emt 0:00:21]} 2. Nf3 {[%emt 0:00:15]} d6 {[%emt 0:00:09]} 3. d4 {[%emt 0:00:04]} cxd4 {[%emt 0:00:05]} 4. Nxd4 {[%emt 0:00:04]} Nf6 {[%emt 0:00:17]} 5. Nc3 {[%emt 0:00:04]} a6 {[%emt 0:00:04]} 6. f3 {[%emt 0:00:04]} e5 {[%emt 0:00:17]} 7. Nb3 {[%emt 0:00:05]} Be7 {[%emt 0:00:07]} 8. Be3 {[%emt 0:00:04]} Be6 {[%emt 0:00:17]} 9. Qd2 {[%emt 0:00:04]} h5 {[%emt 0:00:20]} 10. O-O-O {[%emt 0:02:58]} Nbd7 {[%emt 0:00:37]} 11. h3 {[%emt 0:02:37]} Rc8 {[%emt 0:02:48]} 12. Kb1 {[%emt 0:00:41]} b5 {[%emt 0:00:58]} 13. Bd3 {[%emt 0:04:18]} h4 {[%emt 0:01:09]} 14. f4 {[%emt 0:02:07]} Qc7 {[%emt 0:01:50]} 15. Rhe1 {[%emt 0:03:15]} O-O {[%emt 0:03:08]} 16. f5 {[%emt 0:07:06]} Bc4 {[%emt 0:07:06]} 17. Bg5 {[%emt 0:03:16]} b4 {[%emt 0:04:34]} 18. Nd5 {[%emt 0:33:18]} Nxd5 {[%emt 0:17:39]} 19. exd5 {[%emt 0:00:12]} Bxg5 {[%emt 0:02:25]} 20. Qxg5 {[%emt 0:00:06]} Bxd3 {[%emt 0:01:38]} 21. cxd3 {[%emt 0:00:05]} Nf6 {[%emt 0:17:36]} 22. Rc1 {[%emt 0:05:55]} Qb7 {[%emt 0:01:07]} 23. Qxh4 {[%emt 0:08:43]} Qxd5 {[%emt 0:00:55]} 24. Qxb4 {[%emt 0:01:52]} Qxd3+ {[%emt 0:00:41]} 25. Ka1 {[%emt 0:00:05]} Rb8 {[%emt 0:02:32]} 26. Qa3 {[%emt 0:05:23]} Ne4 {[%emt 0:08:23]} 27. Qa4 {[%emt 0:04:01]} d5 {[%emt 0:04:23]} 28. Rcd1 {[%emt 0:01:45]} Qb5 {[%emt 0:01:51]} 29. Qxb5 {[%emt 0:02:03]} Rxb5 {[%emt 0:00:12]} 30. Rc1 {[%emt 0:02:30]} f6 {[%emt 0:01:17]} 31. Rc6 {[%emt 0:01:31]} Ng3 {[%emt 0:02:42]} 32. Nc5 {[%emt 0:04:14]} Nxf5 {[%emt 0:00:16]} 33. Nxa6 {[%emt 0:00:45]} d4 {[%emt 0:02:43]} 34. a4 {[%emt 0:01:29]} Rb3 {[%emt 0:01:29]} 35. Nc5 {[%emt 0:00:33]} Rb4 {[%emt 0:01:20]} 36. Ka2 {[%emt 0:00:53]} Ne7 {[%emt 0:02:12]} 37. Rc7 {[%emt 0:01:15]} Nd5 {[%emt 0:01:09]} 38. Ra7 {[%emt 0:00:38]} Rc8 {[%emt 0:03:44]} 39. Nd3 {[%emt 0:01:16]} Rbb8 {[%emt 0:01:25]} 40. Re2 {[%emt 0:04:04]} Ne3 {[%emt 0:03:16]} 41. b4 {[%emt 0:00:46]} Nd5 {[%emt 0:00:25]} 42. Rb2 {[%emt 0:00:16]} Rc3 {[%emt 0:00:56]} 43. Ra5 {[%emt 0:00:33]} Ne3 {[%emt 0:01:29]} 44. Rb3 {[%emt 0:00:42]} Rc2+ {[%emt 0:02:33]} 45. Nb2 {[%emt 0:00:16]} Nd1 {[%emt 0:01:14]} 46. b5 {[%emt 0:00:14]} Nc3+ {[%emt 0:01:02]} 47. Ka3 {[%emt 0:00:06]} e4 {[%emt 0:00:13]} 48. b6 {[%emt 0:00:26]} Nb1+ {[%emt 0:00:49]} 49. Ka2 {[%emt 0:00:05]} Nd2 {[%emt 0:00:34]} 50. b7 {[%emt 0:00:56]} Nxb3 {[%emt 0:00:42]} 51. Ra8 {[%emt 0:00:01]} Nc1+ {[%emt 0:00:27]} 52. Kb1 {[%emt 0:00:16]} Rxb2+ {[%emt 0:00:27]} 53. Kxb2 {[%emt 0:00:06]} Nd3+ {[%emt 0:00:02]} 54. Kb1 {[%emt 0:01:12]} e3 {[%emt 0:00:24]} 55. Rxb8+ {[%emt 0:00:05]} Kf7 {[%emt 0:00:06]} 56. Rf8+ {[%emt 0:01:13]} Kxf8 {[%emt 0:00:28]} 57. b8=Q+ {[%emt 0:00:05]} Ke7 {[%emt 0:00:05]} 58. Qb7+ {[%emt 0:00:41]} Kf8 {[%emt 0:00:05]} 59. Qe4 {[%emt 0:00:19]} 1-0